fUSD/lending_fUSD_20251006
["ID","MTS","AMOUNT","RATE_DAILY","PERIOD"]
[389587089,1759732232910,-500.0,0.00014973,2]
[389587090,1759732232920,-198.231667,0.00014973,2]
[389587091,1759732232931,-500.0,0.00014973,2]
[389587092,1759732232940,-500.0,0.00014973,2]
[389587093,1759732232950,-500.0,0.00014973,2]
[389587094,1759732232959,-500.0,0.00014973,2]
[389587095,1759732232969,-81.90853844,0.00014973,2]
[389587096,1759732232983,-418.09146156,0.00014973,2]
[389587097,1759732232992,-500.42990743,0.00014973,2]
[389587098,1759732233002,-500.69179469,0.00014973,2]
[389587099,1759732233011,-500.0,0.00014973,2]
[389587100,1759732233021,-500.0,0.00014973,2]
[389587101,1759732233030,-500.0,0.00014973,2]
[389587102,1759732233039,-500.0,0.00014973,2]
[389587103,1759732233049,-243.99387068,0.00014973,2]
[389587104,1759732233058,-500.0,0.00014973,2]
[389587105,1759732233068,-1000.0,0.00014979,2]
[389587106,1759732233078,-1000.0,0.00014979,2]
[389587107,1759732233087,-4299.90441136,0.0001498,2]
[389587108,1759732233099,-55265.7141967,0.0001498,2]
[389587109,1759732233110,-52979.82124869,0.0001498,2]
[389587110,1759732233369,-173.05371593,0.00014879,2]
[389587111,1759732233378,-965.77128407,0.0001498,2]
[389587112,1759732237548,-1416.15866498,0.0001498,2]
[389587113,1759732237633,-4674.60000234,0.0001498,2]
[389587114,1759732237644,-8072.81891373,0.0001498,2]
[389587115,1759732237655,-1239.23805153,0.0001498,2]
[389587116,1759732237715,-1140.225,0.0001498,2]
[389587305,1759732239640,-1423.5237888,0.0001498,2]
[389587315,1759732239729,-388.945,0.0001498,2]
[389587326,1759732239817,-750.34978988,0.0001498,2]
[389587328,1759732239828,-1607.93902949,0.0001498,2]
[389587330,1759732239840,-8165.80049627,0.0001498,2]
[389587332,1759732239850,-2347.87450692,0.0001498,2]
[389587339,1759732239908,-4754.8848128,0.0001498,2]
[389587622,1759732242669,-8369.79724476,0.0001498,2]
[389587624,1759732242681,-617.96,0.0001498,2]
[389587626,1759732242691,-952.4835028,0.0001498,2]
[389587634,1759732242761,-478.05071113,0.0001498,2]
[389587677,1759732243160,-32769.54196929,0.0001498,2]
[389587703,1759732243390,-1971.91431274,0.0001498,2]
[389587705,1759732243400,-212219.33425138,0.0001498,2]
[389587804,1759732245734,-3431.37413584,0.0001498,2]
[389587805,1759732245819,-1284.80309852,0.0001498,2]
[389587806,1759732245839,-218771.0557758,0.0001498,2]
[389587809,1759732246430,-803.5,0.0001498,2]
[389587811,1759732759769,192.0,0.000108,2]
[389587812,1759732760364,189.0,0.0001198,2]
[389587813,1759733001733,500.0,0.00011884,2]
[389587814,1759733016894,200.0,0.00011883,2]
[389587815,1759733017274,200.0,0.00011884,2]
[389587926,1759733289984,191.0,9.8e-05,2]
[389587927,1759733290397,188.0,0.0001098,2]
[389587928,1759733290747,184.0,0.0001217,2]
[389587942,1759733431855,-1004.78810055,0.0001323,2]
[389587946,1759733431900,-74.40526545,0.0001323,2]
[389587947,1759733431911,-300.0,0.00013297,2]
[389587948,1759733431924,-1200.0,0.00013297,2]
[389587949,1759733431933,-256.29696039,0.00013298,2]
[389587962,1759733432781,-4144.25860502,0.000133,2]
[389587963,1759733432791,-180.0,0.0001335,2]
[389587964,1759733432800,-155.91422166,0.00013389,2]
[389587965,1759733432810,-155.44551994,0.00013389,2]
[389587966,1759733432819,-153.17312931,0.00013389,2]
[389587967,1759733432828,-153.17161212,0.00013389,2]
[389587968,1759733432837,-283.5347166,0.00013389,2]
[389587969,1759733432847,-152.0858777,0.00013389,2]
[389587970,1759733432856,-152.35026595,0.00013389,2]
[389587971,1759733432865,-500.0,0.0001352,2]
[389587972,1759733432875,-150.0,0.00013696,2]
[389587973,1759733432884,-500.0,0.00013699,2]
[389587974,1759733432893,-500.0,0.00013699,2]
[389587975,1759733432902,-500.0,0.00013699,2]
[389587976,1759733432913,-500.0,0.00013699,2]
[389587977,1759733432924,-500.0,0.00013699,2]
[389587978,1759733432934,-158.98,0.0001389,2]
[389587979,1759733432945,-509.85,0.00014199,2]
[389587980,1759733432958,-334.0,0.00014247,2]
[389587981,1759733432969,-2412.81,0.0001435,2]
[389587982,1759733432979,-418.2,0.0001435,2]
[389587983,1759733432990,-412.85,0.0001435,2]
[389587984,1759733433000,-1197.55,0.0001435,2]
[389587985,1759733433009,-412.85,0.0001435,2]
[389587986,1759733433018,-1197.55,0.0001435,2]
[389587987,1759733433027,-794.43,0.000144,2]
[389587988,1759733433037,-200.0,0.000144,5]
[389587989,1759733433046,-500.0,0.000145,5]
[389587990,1759733433056,-176.0,0.0001453,2]
[389587991,1759733433065,-1197.55,0.00014578,2]
[389587992,1759733433074,-412.85,0.00014578,2]
[389587993,1759733433084,-158.98,0.00014585,2]
[389587994,1759733433094,-700.0,0.000146,5]
[389587995,1759733433103,-242.81295531,0.00014628,2]
[389587996,1759733433112,-150.0,0.000147,2]
[389587997,1759733433122,-469.1886301,0.000147,2]
[389587998,1759733433145,-76.4213699,0.000147,2]
[389587999,1759733433155,-1197.55,0.000147,2]
[389588000,1759733433165,-412.85,0.000147,2]
[389588001,1759733433176,-167.8363,0.000147,5]
[389588002,1759733433187,-825.99,0.000147,5]
[389588003,1759733433203,-6.1737,0.000147,5]
[389588004,1759733433213,-302.99429148,0.0001475,2]
[389588005,1759733433224,-161.56324402,0.0001478,2]
[389588006,1759733433233,-182.9414149,0.0001478,2]
[389588007,1759733433243,-108.05229801,0.0001478,2]
[389588008,1759733433357,-294.9922424,0.0001478,2]
[389588009,1759733433370,-233.08929102,0.0001478,2]
[389588010,1759733433379,-183.07666755,0.0001478,2]
[389588011,1759733433394,-4816.92333245,0.0001478,2]
[389588012,1759733433404,-218.7059016,0.0001478,2]
[389588013,1759733433414,-969.7303,0.0001478,2]
[389588014,1759733433424,-388.05333705,0.0001478,2]
[389588015,1759733433434,-231.28369723,0.00014791,2]
[389588016,1759733433446,-636.13383134,0.00014793,2]
[389588017,1759733433456,-388.05333696,0.00014793,2]
[389588018,1759733433465,-683.37868488,0.000148,2]
[389588019,1759733433475,-1197.55,0.000148,2]
[389588020,1759733433484,-170.24,0.000148,2]
[389588021,1759733433494,-545.61,0.000148,2]
[389588022,1759733433504,-151.09,0.000148,2]
[389588023,1759733433513,-150.51,0.000148,2]
[389588024,1759733433523,-1300.0,0.000148,5]
[389588025,1759733433533,-636.13383134,0.00014807,2]
[389588026,1759733433542,-388.05333696,0.00014807,2]
[389588027,1759733433553,-636.13383134,0.0001482,2]
[389588028,1759733433564,-388.05333696,0.0001482,2]
[389588029,1759733433575,-1000.0,0.00014831,2]
[389588030,1759733433587,-636.13383134,0.00014833,2]
[389588031,1759733433597,-388.05333696,0.00014833,2]
[389588032,1759733433607,-636.13383134,0.00014847,2]
[389588033,1759733433617,-388.05333696,0.00014847,2]
[389588034,1759733433626,-636.13383134,0.0001486,2]
[389588035,1759733433637,-388.05333696,0.0001486,2]
[389588036,1759733433647,-405.749847,0.00014863,2]
[389588037,1759733433657,-322.6107,0.00014871,2]
[389588038,1759733433666,-500.0,0.00014873,2]
[389588039,1759733433675,-500.0,0.00014873,2]
[389588040,1759733433684,-500.0,0.00014873,2]
[389588041,1759733433694,-2492.937,0.00014873,2]
[389588042,1759733433703,-219.897,0.00014873,2]
[389588043,1759733433713,-1000.0,0.00014873,2]
[389588044,1759733433722,-636.13383134,0.00014873,2]
[389588045,1759733433732,-388.05333696,0.00014873,2]
[389588046,1759733433742,-27308.9439,0.0001488,2]
[389588047,1759733433751,-18126.24480169,0.0001488,2]
[389588049,1759733437800,-500.0,0.00013297,2]
[389588050,1759733437810,-10.00112626,0.00013297,2]
[389588051,1759733437925,-272.90739466,0.00013297,2]
[389588052,1759733437961,-89.61763509,0.00013297,2]
[389588053,1759733437972,-500.0,0.00013297,2]
[389588054,1759733437982,-500.0,0.00013297,2]
[389588055,1759733437992,-291.32236491,0.00013297,2]
[389588056,1759733438004,-208.67763509,0.00013297,2]
[389588057,1759733438013,-500.0,0.00013297,2]
[389588058,1759733438023,-500.0,0.00013297,2]
[389588059,1759733438032,-500.0,0.00013297,2]
[389588060,1759733438043,-500.0,0.00013297,2]
[389588061,1759733438052,-2292.29372089,0.00014867,3]
[389588062,1759733438062,-1242.54187,0.0001488,2]
[389588063,1759733438165,-61974.99999999,0.0001488,2]
[389588064,1759733438177,-465.32937495,0.0001488,2]
[389588065,1759733438200,-2220.43789094,0.0001488,2]
[389588070,1759733439914,-4375.75782297,0.0001488,2]
[389588071,1759733439928,-3587.30455759,0.0001488,2]
[389588072,1759733439942,-5334.04215101,0.0001488,2]
[389588073,1759733439952,-20615.53260794,0.0001488,2]
[389588074,1759733440033,-670.23996749,0.0001488,2]
[389588075,1759733440153,-4307.19990002,0.0001488,2]
[389588076,1759733440165,-4187.16515031,0.0001488,2]
[389588077,1759733440176,-473.93335833,0.0001488,2]
[389588078,1759733440186,-1786.59993922,0.0001488,2]
[389588080,1759733444163,-230602.95321319,0.0001488,2]
[389588081,1759733444175,-416767.23111591,0.0001488,2]
[389588082,1759733444247,-3994.71860672,0.0001488,2]
[389588087,1759733445851,-21039.4644456,0.0001488,2]
[389588088,1759733445965,-22872.85,0.0001488,2]
[389588089,1759733445976,-1141.35000001,0.0001488,2]
[389588094,1759733591502,6839.05767997,0.00013116,2]
[389588095,1759733622344,6173.11410684,0.00012893,2]
[389588096,1759733643443,2250.14,0.00012883,2]
[389588097,1759733712237,153.0,0.00012883,2]
[389588098,1759733765385,153.0,0.00012883,2]
[389588099,1759733820060,173.0,0.000116,2]
[389588100,1759733820425,170.0,0.0001278,2]
[389588101,1759733827789,153.0,0.00012883,2]
[389588102,1759733853543,475.0,0.00015,30]
[389588104,1759733886183,153.0,0.00012883,2]
[389588106,1759733948601,153.0,0.00012883,2]
[389588107,1759734009112,153.0,0.00012883,2]
[389588108,1759734066996,154.0,0.00012883,2]
[389588109,1759734130966,154.0,0.00012883,2]
[389588111,1759734187997,154.0,0.00012883,2]
[389588112,1759734212623,200.0,0.0001278,2]
[389588113,1759734247580,154.0,0.00012883,2]
[389588114,1759734306864,154.0,0.00012883,2]
[389588115,1759734345710,156.97,6.834e-05,2]
[389588116,1759734345908,156.97,9.112e-05,2]
[389588117,1759734346108,156.97,0.0001139,2]
[389588118,1759734350085,167.0,0.000106,2]
[389588119,1759734350473,163.0,0.0001178,2]
[389588120,1759734373197,154.0,0.00012883,2]
[389588121,1759734377499,3162.68355446,0.00015,30]
[389588123,1759734428587,154.0,0.00012883,2]
[389588124,1759734487817,154.0,0.00012883,2]
[389588125,1759734545754,154.0,0.00012883,2]
[389588126,1759734608955,154.0,0.00012883,2]
[389588135,1759734632369,-160.0,0.0001297,2]
[389588136,1759734632378,-500.0,0.00013198,2]
[389588137,1759734632387,-150.0,0.00013389,2]
[389588138,1759734632397,-144.02089114,0.00013389,2]
[389588139,1759734632409,-5.97910886,0.00013389,2]
[389588140,1759734632417,-150.0,0.00013389,2]
[389588141,1759734632427,-150.0,0.00013389,2]
[389588142,1759734632436,-150.0,0.00013389,2]
[389588143,1759734632445,-150.0,0.00013389,2]
[389588144,1759734632457,-60.02089114,0.00013389,2]
[389588145,1759734632476,-153.27910886,0.00013389,2]
[389588146,1759734632486,-150.0,0.00013389,2]
[389588147,1759734632495,-150.0,0.00013389,2]
[389588148,1759734632507,-260.96704912,0.0001352,2]
[389588149,1759734632518,-239.03295088,0.0001352,2]
[389588150,1759734632528,-156.97,0.00013668,2]
[389588151,1759734632539,-150.0,0.0001367,7]
[389588152,1759734632548,-167.90488483,0.00013699,2]
[389588153,1759734632564,-332.09511517,0.00013699,2]
[389588154,1759734632574,-410.72008888,0.000137,2]
[389588156,1759734632593,-63.13991112,0.000137,2]
[389588158,1759734632603,-489.95,0.00013715,2]
[389588160,1759734632612,-2000.0,0.00013754,2]
[389588162,1759734632621,-666.0,0.00013807,3]
[389588163,1759734632631,-266.27,0.00013928,2]
[389588164,1759734632641,-200.0,0.00013954,2]
[389588165,1759734632651,-1600.0,0.00013994,2]
[389588166,1759734632660,-215.0,0.00014042,2]
[389588167,1759734632669,-1868.97,0.00014078,2]
[389588168,1759734632678,-473.94,0.00014121,2]
[389588171,1759734632688,-157.0,0.0001415,2]
[389588173,1759734632698,-177.03,0.00014204,2]
[389588176,1759734632708,-230.56381169,0.00014266,2]
[389588180,1759734632717,-2000.0,0.00014267,2]
[389588181,1759734632727,-195.0,0.00014267,2]
[389588182,1759734632736,-2000.0,0.00014267,2]
[389588183,1759734632745,-300.0,0.00014267,2]
[389588184,1759734632755,-302.27132399,0.00014267,2]
[389588185,1759734632764,-300.0,0.00014267,2]
[389588186,1759734632773,-195.0,0.00014267,2]
[389588187,1759734632783,-300.0,0.00014267,2]
[389588188,1759734632792,-300.0,0.00014267,2]
[389588189,1759734632801,-500.0,0.00014267,2]
[389588190,1759734632811,-874.98903889,0.00014267,2]
[389588191,1759734632820,-1197.55,0.00014278,2]
[389588192,1759734632830,-334.88287031,0.00014283,2]
[389588193,1759734632854,-139.05712969,0.00014283,2]
[389588194,1759734632863,-357.07861978,0.00014397,2]
[389588195,1759734632873,-231.28369723,0.00014438,2]
[389588196,1759734632882,-1197.76,0.00014447,2]
[389588197,1759734632891,-1091.22,0.00014447,2]
[389588198,1759734632901,-335.54,0.00014447,2]
[389588199,1759734632910,-61.48213898,0.00014447,2]
[389588200,1759734632921,-764.21786102,0.00014447,2]
[389588201,1759734632930,-150.0,0.00014447,2]
[389588202,1759734632939,-300.0,0.00014447,2]
[389588203,1759734632948,-150.0,0.00014447,2]
[389588204,1759734632957,-807.41,0.000145,2]
[389588205,1759734632967,-303.91,0.000145,2]
[389588206,1759734632976,-150.0,0.000145,2]
[389588207,1759734632985,-760.61556,0.000147,2]
[389588208,1759734632994,-1125.20320836,0.00014708,2]
[389588209,1759734633006,-299.79679164,0.00014708,2]
[389588210,1759734633015,-509.0064159,0.00014713,2]
[389588211,1759734633024,-491.19679246,0.0001473,2]
[389588212,1759734633056,-802.35853647,0.0001473,2]
[389588213,1759734633067,-2681.65133107,0.0001473,2]
[389588214,1759734633076,-445.12713664,0.00014744,2]
[389588215,1759734633099,-554.87286336,0.00014744,2]
[389588216,1759734633108,-932.38338665,0.0001476,2]
[389588217,1759734633120,-3042.82327335,0.0001476,2]
[389588218,1759734633130,-81.51831743,0.00014771,2]
[389588219,1759734633170,-184.75965452,0.00014771,2]
[389588220,1759734633179,-200.0,0.00014771,2]
[389588221,1759734633188,-200.0,0.00014771,2]
[389588222,1759734633197,-200.0,0.00014771,2]
[389588223,1759734633208,-200.0,0.00014771,2]
[389588224,1759734633217,-200.0,0.00014771,2]
[389588225,1759734633226,-200.0,0.00014771,2]
[389588226,1759734633235,-200.0,0.00014771,2]
[389588227,1759734633244,-200.0,0.00014771,2]
[389588228,1759734633256,-200.0,0.00014771,2]
[389588229,1759734633265,-166.84005463,0.00014771,2]
[389588230,1759734633276,-201.4930451,0.00014771,2]
[389588231,1759734633285,-322.6107,0.00014771,2]
[389588232,1759734633295,-200.0,0.00014771,2]
[389588233,1759734633305,-200.0,0.00014771,2]
[389588234,1759734633315,-200.0,0.00014771,2]
[389588235,1759734633325,-304.96171764,0.00014771,2]
[389588236,1759734633335,-200.0,0.00014771,2]
[389588237,1759734633344,-200.0,0.00014771,2]
[389588238,1759734633354,-169.39328048,0.00014771,2]
[389588239,1759734633365,-30.60671952,0.00014771,2]
[389588240,1759734633375,-200.0,0.00014771,2]
[389588241,1759734633385,-150.57523753,0.00014771,2]
[389588242,1759734633396,-49.42476247,0.00014771,2]
[389588243,1759734633406,-200.0,0.00014771,2]
[389588244,1759734633415,-200.0,0.00014771,2]
[389588245,1759734633425,-48.32523753,0.00014771,2]
[389588246,1759734633448,-151.67476247,0.00014771,2]
[389588247,1759734633465,-208.84769071,0.00014771,2]
[389588248,1759734633475,-1197.92602222,0.0001478,2]
[389588249,1759734633487,-663.97517778,0.0001478,2]
[389588250,1759734633496,-161.56324401,0.0001478,2]
[389588251,1759734633506,-1000.0,0.0001478,2]
[389588252,1759734633516,-5000.0,0.0001478,2]
[389588253,1759734633525,-155.32615346,0.0001478,2]
[389588254,1759734633537,-585.00355716,0.0001478,2]
[389588255,1759734633547,-156.05144291,0.0001478,2]
[389588256,1759734633557,-1000.0,0.00014789,2]
[389588257,1759734633567,-155.32615341,0.000148,2]
[389588258,1759734633579,-155.32615341,0.0001482,2]
[389588259,1759734633589,-357.07861979,0.00014838,2]
[389588260,1759734633598,-155.32615341,0.0001484,2]
[389588261,1759734633608,-490.33,0.00014849,14]
[389588262,1759734633617,-155.32615341,0.0001486,2]
[389588263,1759734633627,-537.21548545,0.0001487,2]
[389588271,1759734638922,-500.0,0.00013386,2]
[389588272,1759734638931,-500.0,0.00013386,2]
[389588273,1759734638940,-493.62141964,0.00013386,2]
[389588274,1759734638962,-655.20451455,0.0001487,2]
[389588275,1759734638971,-1192.42,0.0001487,2]
[389588276,1759734638980,-6634.72896178,0.00014872,2]
[389588277,1759734640114,-521.4885805,0.00014872,2]
[389588278,1759734640254,-617.93584546,0.00014872,2]
[389588279,1759734640380,-3977.83461505,0.00014872,2]
[389588280,1759734640395,-2000.0000589,0.00014872,2]
[389588291,1759734643413,-363.05065123,0.00014872,2]
[389588292,1759734643424,-59.26839178,0.00014872,2]
[389588293,1759734643433,-166.0708842,0.00014872,2]
[389588294,1759734643449,-501.3878239,0.00014873,2]
[389588295,1759734643465,-500.0,0.00014873,2]
[389588296,1759734643474,-395.83838886,0.00014873,2]
[389588297,1759734643483,-51000.62923574,0.0001488,2]
[389588298,1759734643492,-84443.80527447,0.0001488,2]
[389588299,1759734643506,-339218.30117682,0.0001488,2]
[389588305,1759734646044,-102900.5355544,0.0001488,2]
[389588306,1759734646202,-2137.38559256,0.0001488,2]
[389588307,1759734646213,-7295.8078089,0.0001488,2]
[389588308,1759734646443,-15683.66786162,0.0001488,2]
[389588309,1759734646469,-14645.81505078,0.0001488,2]
[389588310,1759734646480,-9238.20344991,0.0001488,2]
[389588312,1759734646491,-28816.712047,0.0001488,2]
[389588315,1759734646507,-4277.26729222,0.0001488,2]
[389588317,1759734646518,-1275.33374279,0.0001488,2]
[389588354,1759734880819,121.06410684,0.000124,2]
[389588355,1759734880843,32.93589316,0.000124,2]
[389588356,1759734914336,154.0,0.00012878,2]
[389588357,1759734970957,154.0,0.00012878,2]
[389588359,1759735120389,-10507.02203315,0.000199,120]
[389588360,1759735120493,-2488.83533827,0.0002301,120]
[389588361,1759735120559,-150.0,0.00024722,120]
[389588362,1759735120615,-417.0,0.000248,120]
[389588363,1759735120682,-2000.0,0.00024999,120]
[389588364,1759735120760,-503.639916,0.00024999,120]
[389588365,1759735120826,-1688.97,0.00025,120]
[389588366,1759735120887,-500.0,0.00025029,120]
[389588367,1759735120966,-600.0,0.00026,120]
[389588368,1759735121046,-500.0,0.00026235,120]
[389588369,1759735121347,-2000.0,0.00026499,120]
[389588370,1759735121405,-150.0,0.00026683,120]
[389588371,1759735121463,-718.95689797,0.00027,120]
[389588372,1759735121520,-800.0,0.00027,120]
[389588373,1759735121577,-197.6525082,0.00027,120]
[389588374,1759735121633,-150.0,0.00027085,120]
[389588375,1759735121696,-150.0,0.00027205,120]
[389588376,1759735121763,-500.0,0.00027441,120]
[389588377,1759735121824,-2037.115598,0.00027999,120]
[389588378,1759735121882,-800.0,0.00028,120]
[389588379,1759735121943,-150.0,0.00028468,120]
[389588380,1759735122003,-500.0,0.00028647,120]
[389588381,1759735122062,-1065.60767391,0.00028767,120]
[389589571,1759735204280,177.0,0.00023944,120]
[389591675,1759735342686,500.0,0.00028767,120]
[389591709,1759735356575,162.0,0.000287,120]
[389591731,1759735357867,162.0,0.000287,120]
[389591860,1759735366550,162.0,0.000287,120]
[389592450,1759735400948,500.0,0.00025046,120]
[389592451,1759735401265,500.0,0.00026558,120]
[389592452,1759735402135,500.0,0.0002807,120]
[389592453,1759735411499,-151.0,0.000114,2]
[389592454,1759735437556,162.0,0.000287,120]
[389592455,1759735515846,6257.86993639,0.00012,2]
[389592456,1759735515868,6257.86993639,0.00012,2]
[389592457,1759735515891,6257.86993639,0.00012,2]
[389592458,1759735515913,6257.86993639,0.00012,2]
[389592459,1759735515935,6257.86993639,0.00012,2]
[389592460,1759735515957,6257.86993639,0.00012,2]
[389592461,1759735515979,1652.78038166,0.00012,2]
[389592462,1759735525311,365.66580126,0.000108,2]
[389592463,1759735536326,1098.85001053,9e-05,2]
[389592464,1759735561589,3140.57374294,8e-05,2]
[389592465,1759735561610,2184.35716602,8e-05,2]
[389592466,1759735587093,-150.0,0.0001258,2]
[389592467,1759735587118,-160.0,0.00013376,2]
[389592468,1759735587140,-1200.0,0.00013376,2]
[389592469,1759735587164,-500.0,0.00013377,2]
[389592470,1759735587189,-500.0,0.00013377,2]
[389592471,1759735587211,-183.87219877,0.00013377,2]
[389592472,1759735587237,-500.0,0.00013377,2]
[389592473,1759735587261,-500.0,0.00013377,2]
[389592474,1759735587285,-500.0,0.00013377,2]
[389592475,1759735587309,-500.0,0.00013377,2]
[389592476,1759735587333,-306.46673744,0.00013377,2]
[389592477,1759735587354,-150.0,0.00013488,2]
[389592478,1759735587375,-150.0,0.00013488,2]
[389592479,1759735587396,-150.0,0.00013488,2]
[389592480,1759735587416,-150.0,0.00013488,2]
[389592481,1759735587437,-150.0,0.00013488,2]
[389592482,1759735587457,-150.0,0.00013488,2]
[389592483,1759735587478,-150.0,0.00013488,2]
[389592484,1759735587498,-150.0,0.00013488,2]
[389592485,1759735587519,-150.0,0.0001377,2]
[389592486,1759735587540,-2314.84,0.00013804,2]
[389592487,1759735587561,-300.0,0.00013838,2]
[389592488,1759735587581,-2500.0,0.00013838,2]
[389592489,1759735587602,-626.4,0.00013838,2]
[389592490,1759735587623,-250.0,0.00013926,2]
[389592491,1759735587644,-155.38,0.00013996,2]
[389592492,1759735587664,-151.62407954,0.00014208,2]
[389592493,1759735587684,-231.28369723,0.00014208,2]
[389592494,1759735587707,-285.0,0.00014632,2]
[389592495,1759735587727,-2106.91383776,0.000147,2]
[389592496,1759735587750,-285.0,0.00014707,2]
[389592497,1759735587773,-285.0,0.00014759,2]
[389592498,1759735587795,-500.0,0.00014761,2]
[389592499,1759735587816,-200.0,0.00014761,2]
[389592500,1759735587843,-1000.0,0.00014764,2]
[389592501,1759735587864,-322.6107,0.00014771,2]
[389592502,1759735587887,-277.1120393,0.00014779,2]
[389592503,1759735587908,-184.69807727,0.00014779,2]
[389592504,1759735587931,-201.20744296,0.00014779,2]
[389592505,1759735587952,-150.0,0.00014779,2]
[389592506,1759735587974,-15606.6898,0.0001478,2]
[389592507,1759735587997,-160.95085569,0.0001478,2]
[389592508,1759735588019,-262.95225643,0.0001478,2]
[389592509,1759735588042,-625.35805407,0.0001478,2]
[389592510,1759735588063,-410.00564642,0.0001478,2]
[389592511,1759735588083,-532.41989667,0.0001478,2]
[389592512,1759735588105,-5000.0,0.0001478,2]
[389592513,1759735588128,-825.0,0.00014788,2]
[389592514,1759735588148,-420.51708538,0.000148,2]
[389592515,1759735588171,-285.0,0.00014811,2]
[389592516,1759735588195,-825.0,0.00014812,2]
[389592517,1759735588215,-1425.0,0.00014828,2]
[389592518,1759735588237,-285.0,0.0001483,2]
[389592519,1759735588257,-717.0384563,0.00014835,2]
[389592520,1759735588279,-285.0,0.00014837,2]
[389592521,1759735588301,-285.0,0.00014857,2]
[389592522,1759735588322,-500.0,0.00014865,2]
[389592523,1759735588344,-500.0,0.00014873,2]
[389592524,1759735588364,-151.0,0.00014877,2]
[389592525,1759735588388,-62889.3756265,0.0001488,2]
[389592526,1759735588408,-3167303.85386075,0.0001488,2]
[389592527,1759735588431,-500.0,0.0001488,2]
[389592528,1759735588451,-159.68885,0.0001488,2]
[389592529,1759735588472,-37555.4671468,0.000149,2]
[389592530,1759735588492,-1000.0,0.000149,2]
[389592531,1759735588513,-1425.0,0.00014929,2]
[389592532,1759735588842,-150.0,0.0001495,2]
[389592533,1759735588867,-262.95225638,0.00014953,2]
[389592534,1759735588890,-625.35805405,0.00014953,2]
[389592535,1759735588913,-268.6525892,0.00014963,2]
[389592536,1759735588934,-500.28670976,0.00014973,2]
[389592537,1759735588957,-500.0,0.00014973,2]
[389592538,1759735588980,-500.0,0.00014973,2]
[389592539,1759735589002,-500.4069836,0.00014973,2]
[389592540,1759735589024,-160.04373176,0.00014973,2]
[389592541,1759735589045,-500.0,0.00014973,2]
[389592542,1759735589067,-500.0,0.00014973,2]
[389592543,1759735589090,-500.17778584,0.00014973,2]
[389592544,1759735589112,-500.0,0.00014973,2]
[389592545,1759735589133,-500.59438374,0.00014973,2]
[389592546,1759735589154,-500.0,0.00014973,2]
[389592547,1759735589175,-500.60360574,0.00014973,2]
[389592548,1759735589195,-159.887952,0.00014973,2]
[389592549,1759735589216,-500.0,0.00014973,2]
[389592550,1759735589237,-500.0,0.00014973,2]
[389592551,1759735589258,-500.0,0.00014973,2]
[389592552,1759735589278,-500.0,0.00014973,2]
[389592553,1759735589298,-500.0,0.00014973,2]
[389592554,1759735589319,-500.0,0.00014973,2]
[389592555,1759735589339,-500.0,0.00014973,2]
[389592556,1759735589360,-500.0,0.00014973,2]
[389592557,1759735589383,-500.0,0.00014973,2]
[389592558,1759735589403,-500.0,0.00014973,2]
[389592559,1759735589424,-500.0,0.00014973,2]
[389592560,1759735589444,-500.0,0.00014973,2]
[389592561,1759735589464,-161.32038661,0.00014973,2]
[389592562,1759735589483,-500.0,0.00014973,2]
[389592563,1759735589502,-500.1909223,0.00014973,2]
[389592564,1759735589523,-500.0,0.00014973,2]
[389592565,1759735589543,-500.0,0.00014973,2]
[389592566,1759735589564,-162.60687482,0.00014973,2]